[Event "Early-Titled-Tuesday-Blitz-February-06-2024"]
[Site "Chess.com"]
[Date "2024.02.06"]
[Round "4"]
[White "19912131712118"]
[Black "Arystanner"]
[Result "1-0"]
[WhiteElo "2439"]
[BlackElo "2863"]
[TimeControl "180+1"]
[EndTime "8:37:22 PST"]
[Termination "19912131712118 won by resignation"]

1. e4 {[%clk 0:03:00]} 1... e5 {[%clk 0:03:00]} 2. Nf3 {[%clk 0:02:58]} 2... Nf6
{[%clk 0:03:00.5]} 3. Nxe5 {[%clk 0:02:57.2]} 3... d6 {[%clk 0:03:00.9]} 4. Nf3
{[%clk 0:02:57.1]} 4... Nxe4 {[%clk 0:03:01.4]} 5. d4 {[%clk 0:02:58]} 5... d5
{[%clk 0:03:01.8]} 6. Bd3 {[%clk 0:02:58.7]} 6... Bf5 {[%clk 0:03:01.5]} 7. O-O
{[%clk 0:02:58.1]} 7... Be7 {[%clk 0:03:01.8]} 8. c4 {[%clk 0:02:58.4]} 8... O-O
{[%clk 0:02:59.2]} 9. Re1 {[%clk 0:02:58.1]} 9... Nc6 {[%clk 0:02:56.4]} 10. a3
{[%clk 0:02:57.8]} 10... Bg6 {[%clk 0:02:50]} 11. Qc2 {[%clk 0:02:57.1]} 11...
Nf6 {[%clk 0:02:42.3]} 12. Bxg6 {[%clk 0:02:54.4]} 12... hxg6 {[%clk 0:02:43.2]}
13. c5 {[%clk 0:02:53.7]} 13... Ne4 {[%clk 0:02:33.3]} 14. Nbd2 {[%clk
0:02:49.1]} 14... f5 {[%clk 0:02:32.1]} 15. b4 {[%clk 0:02:28.5]} 15... Bh4
{[%clk 0:02:30.2]} 16. g3 {[%clk 0:02:25]} 16... Bf6 {[%clk 0:02:30.2]} 17. Bb2
{[%clk 0:02:24.7]} 17... a6 {[%clk 0:02:30.5]} 18. Ne5 {[%clk 0:02:23.2]} 18...
g5 {[%clk 0:02:12]} 19. f3 {[%clk 0:02:08]} 19... Nxd2 {[%clk 0:02:12.2]} 20.
Qxd2 {[%clk 0:02:08.9]} 20... Bxe5 {[%clk 0:01:59.9]} 21. dxe5 {[%clk
0:02:08.8]} 21... f4 {[%clk 0:01:58]} 22. g4 {[%clk 0:02:05.4]} 22... d4 {[%clk
0:01:58.6]} 23. Rad1 {[%clk 0:02:04.4]} 23... Qd5 {[%clk 0:01:59.2]} 24. Re4
{[%clk 0:01:53.7]} 24... Nxe5 {[%clk 0:01:47.1]} 25. Qe2 {[%clk 0:01:32.2]}
25... d3 {[%clk 0:01:42.8]} 26. Rxe5 {[%clk 0:01:16.5]} 26... Rad8 {[%clk
0:00:59.7]} 27. Rxd5 {[%clk 0:01:10.8]} 27... dxe2 {[%clk 0:00:59.1]} 28. Rxd8
{[%clk 0:01:07.3]} 1-0

[Event "Early-Titled-Tuesday-Blitz-February-06-2024"]
[Site "Chess.com"]
[Date "2024.02.06"]
[Round "4"]
[White "rikchessmx"]
[Black "VomDingJetztHer"]
[Result "0-1"]
[WhiteElo "2308"]
[BlackElo "2487"]
[TimeControl "180+1"]
[EndTime "8:37:23 PST"]
[Termination "VomDingJetztHer won by resignation"]

1. e4 {[%clk 0:02:54.7]} 1... e6 {[%clk 0:03:00]} 2. d4 {[%clk 0:02:54.6]} 2...
d5 {[%clk 0:03:00.9]} 3. Nc3 {[%clk 0:02:54.9]} 3... dxe4 {[%clk 0:03:01.1]} 4.
Nxe4 {[%clk 0:02:54.6]} 4... Bd7 {[%clk 0:03:01.9]} 5. Nf3 {[%clk 0:02:54.3]}
5... Bc6 {[%clk 0:03:02.6]} 6. Ng3 {[%clk 0:02:54.5]} 6... Nd7 {[%clk
0:03:03.1]} 7. Bc4 {[%clk 0:02:54]} 7... Ngf6 {[%clk 0:03:03.2]} 8. c3 {[%clk
0:02:53.9]} 8... Bd5 {[%clk 0:03:03.7]} 9. Bd3 {[%clk 0:02:53.6]} 9... c5 {[%clk
0:03:01.4]} 10. O-O {[%clk 0:02:51.5]} 10... cxd4 {[%clk 0:03:01.5]} 11. Nxd4
{[%clk 0:02:51.7]} 11... Be7 {[%clk 0:03:01.4]} 12. Qe2 {[%clk 0:02:49.8]} 12...
b6 {[%clk 0:02:59.4]} 13. Bg5 {[%clk 0:02:41.7]} 13... O-O {[%clk 0:02:59.5]}
14. c4 {[%clk 0:02:40.3]} 14... Bb7 {[%clk 0:02:59.8]} 15. Rad1 {[%clk
0:02:33.2]} 15... Nc5 {[%clk 0:02:59.7]} 16. Bb1 {[%clk 0:02:29.9]} 16... Qc7
{[%clk 0:02:59.6]} 17. Rfe1 {[%clk 0:02:24.5]} 17... Rad8 {[%clk 0:02:59.5]} 18.
Nb5 {[%clk 0:02:21.4]} 18... Qb8 {[%clk 0:02:59.2]} 19. b4 {[%clk 0:02:16.5]}
19... Na6 {[%clk 0:02:43.2]} 20. a3 {[%clk 0:02:14.9]} 20... Nc7 {[%clk
0:02:42.1]} 21. Nd4 {[%clk 0:02:10.7]} 21... Qc8 {[%clk 0:02:38.2]} 22. Ba2
{[%clk 0:02:06.5]} 22... h6 {[%clk 0:02:33.9]} 23. Bf4 {[%clk 0:01:52.6]} 23...
Rd7 {[%clk 0:02:31.8]} 24. Bb3 {[%clk 0:01:31.5]} 24... Rfd8 {[%clk 0:02:31.9]}
25. Ba4 {[%clk 0:01:31.4]} 25... Rxd4 {[%clk 0:02:29.1]} 26. Rxd4 {[%clk
0:01:27.7]} 26... Rxd4 {[%clk 0:02:30]} 27. Be5 {[%clk 0:01:23.7]} 27... Rd8
{[%clk 0:02:27.1]} 28. Rc1 {[%clk 0:01:10.9]} 28... Nce8 {[%clk 0:02:23.9]} 29.
c5 {[%clk 0:01:02.9]} 29... bxc5 {[%clk 0:02:22]} 30. bxc5 {[%clk 0:01:03]}
30... Bc6 {[%clk 0:02:22.3]} 31. Bc2 {[%clk 0:00:58.9]} 31... Qd7 {[%clk
0:02:19.8]} 32. Rd1 {[%clk 0:00:56.7]} 32... Qb7 {[%clk 0:02:20]} 33. f3 {[%clk
0:00:52.2]} 33... Rxd1+ {[%clk 0:02:17.9]} 34. Qxd1 {[%clk 0:00:30.6]} 34...
Bxc5+ {[%clk 0:02:18]} 35. Kh1 {[%clk 0:00:30.1]} 35... Bd5 {[%clk 0:02:15.4]}
36. Qd3 {[%clk 0:00:29]} 36... Bd6 {[%clk 0:02:05]} 37. Bxf6 {[%clk 0:00:26.6]}
37... Nxf6 {[%clk 0:02:05.9]} 38. Nh5 {[%clk 0:00:26.5]} 38... Nxh5 {[%clk
0:02:03.6]} 39. Qh7+ {[%clk 0:00:25.1]} 39... Kf8 {[%clk 0:02:04.2]} 0-1

[Event "Early-Titled-Tuesday-Blitz-February-06-2024"]
[Site "Chess.com"]
[Date "2024.02.06"]
[Round "4"]
[White "elchacal664"]
[Black "PawnEatingZombie"]
[Result "1-0"]
[WhiteElo "2467"]
[BlackElo "2203"]
[TimeControl "180+1"]
[EndTime "8:37:25 PST"]
[Termination "elchacal664 won by resignation"]

1. e4 {[%clk 0:03:00.9]} 1... d6 {[%clk 0:03:00.1]} 2. c4 {[%clk 0:02:58.8]}
2... Nf6 {[%clk 0:02:56.7]} 3. Nc3 {[%clk 0:02:58.1]} 3... g6 {[%clk 0:02:57.3]}
4. d4 {[%clk 0:02:57.5]} 4... Bg7 {[%clk 0:02:57.9]} 5. f3 {[%clk 0:02:58.1]}
5... O-O {[%clk 0:02:57.1]} 6. Be3 {[%clk 0:02:58.7]} 6... a6 {[%clk 0:02:57.7]}
7. Qd2 {[%clk 0:02:59.1]} 7... Nc6 {[%clk 0:02:57.8]} 8. h3 {[%clk 0:02:58.6]}
8... Nd7 {[%clk 0:02:35.3]} 9. O-O-O {[%clk 0:02:58.3]} 9... e5 {[%clk
0:02:30.2]} 10. Nge2 {[%clk 0:02:56.7]} 10... Na5 {[%clk 0:02:26.1]} 11. Qd3
{[%clk 0:02:35.8]} 11... exd4 {[%clk 0:02:07]} 12. Bxd4 {[%clk 0:02:34.4]} 12...
Ne5 {[%clk 0:02:01.3]} 13. Bxe5 {[%clk 0:02:33.7]} 13... Bxe5 {[%clk 0:01:59.5]}
14. f4 {[%clk 0:02:33]} 14... Bg7 {[%clk 0:01:56.3]} 15. g4 {[%clk 0:02:31.7]}
15... Be6 {[%clk 0:01:39.2]} 16. Nd5 {[%clk 0:02:28.3]} 16... c6 {[%clk
0:01:31.8]} 17. Ne3 {[%clk 0:02:22.5]} 17... Qf6 {[%clk 0:01:03.5]} 18. Qc3
{[%clk 0:02:15.2]} 18... Qxc3+ {[%clk 0:01:02.5]} 19. Nxc3 {[%clk 0:02:13.7]}
19... Bxc4 {[%clk 0:01:02.1]} 20. Nxc4 {[%clk 0:02:13]} 20... Nxc4 {[%clk
0:01:01.8]} 21. Bxc4 {[%clk 0:02:13.9]} 21... Rad8 {[%clk 0:00:45.6]} 22. Kc2
{[%clk 0:02:11.8]} 22... b5 {[%clk 0:00:45.7]} 23. Bb3 {[%clk 0:02:08.3]} 23...
a5 {[%clk 0:00:45.2]} 24. a4 {[%clk 0:02:07.4]} 24... b4 {[%clk 0:00:44.3]} 25.
Ne2 {[%clk 0:02:05]} 25... Rfe8 {[%clk 0:00:44.7]} 26. Ng3 {[%clk 0:02:04.2]}
26... d5 {[%clk 0:00:22.6]} 27. exd5 {[%clk 0:02:02.9]} 27... Re3 {[%clk
0:00:22.4]} 28. Rd3 {[%clk 0:02:02.5]} 28... Rxd3 {[%clk 0:00:18.4]} 29. Kxd3
{[%clk 0:02:03.4]} 29... Bxb2 {[%clk 0:00:17.3]} 30. Kc2 {[%clk 0:01:58.6]}
30... Bf6 {[%clk 0:00:14.6]} 31. Ne4 {[%clk 0:01:53.9]} 1-0

[Event "Early-Titled-Tuesday-Blitz-February-06-2024"]
[Site "Chess.com"]
[Date "2024.02.06"]
[Round "4"]
[White "betta2004"]
[Black "MatthewG-p4p"]
[Result "0-1"]
[WhiteElo "2528"]
[BlackElo "2815"]
[TimeControl "180+1"]
[EndTime "8:37:26 PST"]
[Termination "MatthewG-p4p won by resignation"]

1. e4 {[%clk 0:03:00.9]} 1... c5 {[%clk 0:02:57.2]} 2. Nc3 {[%clk 0:03:00.7]}
2... g6 {[%clk 0:02:57.4]} 3. Bc4 {[%clk 0:02:57.6]} 3... Bg7 {[%clk 0:02:57.3]}
4. h4 {[%clk 0:02:57.8]} 4... h6 {[%clk 0:02:45.5]} 5. Qf3 {[%clk 0:02:55]} 5...
e6 {[%clk 0:02:44.7]} 6. d4 {[%clk 0:02:55.2]} 6... Nc6 {[%clk 0:02:08.1]} 7.
dxc5 {[%clk 0:02:38]} 7... Qa5 {[%clk 0:02:03.8]} 8. Be3 {[%clk 0:02:35.7]} 8...
Bxc3+ {[%clk 0:01:58.1]} 9. bxc3 {[%clk 0:02:32.6]} 9... Qxc3+ {[%clk
0:01:58.5]} 10. Ke2 {[%clk 0:02:29.8]} 10... Qxc4+ {[%clk 0:01:40.3]} 11. Kd2
{[%clk 0:02:29.5]} 11... Ne5 {[%clk 0:01:32.6]} 12. Qg3 {[%clk 0:02:13.4]} 12...
Qb4+ {[%clk 0:01:29]} 13. Kd1 {[%clk 0:02:04.3]} 13... Nc4 {[%clk 0:01:25.2]}
14. Bc1 {[%clk 0:02:01.9]} 14... Qxc5 {[%clk 0:01:12.2]} 15. Ne2 {[%clk
0:01:43.6]} 15... Qd6+ {[%clk 0:01:09.4]} 16. Qxd6 {[%clk 0:01:44]} 16... Nxd6
{[%clk 0:01:10.3]} 17. Bb2 {[%clk 0:01:44.7]} 17... f6 {[%clk 0:01:09.1]} 18. e5
{[%clk 0:01:44.1]} 18... Ne4 {[%clk 0:01:07]} 19. Rf1 {[%clk 0:01:42.5]} 19...
fxe5 {[%clk 0:00:52.8]} 20. Bxe5 {[%clk 0:01:43.4]} 20... Rh7 {[%clk 0:00:52.9]}
21. f3 {[%clk 0:01:43.3]} 21... Rf7 {[%clk 0:00:53]} 22. c3 {[%clk 0:01:31.6]}
22... d6 {[%clk 0:00:49.1]} 23. Bh2 {[%clk 0:01:31.6]} 23... e5 {[%clk
0:00:47.7]} 24. Kc2 {[%clk 0:01:31.8]} 24... Nc5 {[%clk 0:00:48]} 25. Rad1
{[%clk 0:01:31]} 25... Bf5+ {[%clk 0:00:47.3]} 26. Kb2 {[%clk 0:01:31.4]} 26...
O-O-O {[%clk 0:00:45.6]} 27. g4 {[%clk 0:01:29.4]} 27... Bd3 {[%clk 0:00:45.2]}
28. Rd2 {[%clk 0:01:29.1]} 28... Ne7 {[%clk 0:00:43.5]} 29. f4 {[%clk
0:01:29.5]} 29... Nc6 {[%clk 0:00:39.9]} 30. Rf2 {[%clk 0:01:26.9]} 30... Ne4
{[%clk 0:00:37.1]} 0-1

[Event "Early-Titled-Tuesday-Blitz-February-06-2024"]
[Site "Chess.com"]
[Date "2024.02.06"]
[Round "4"]
[White "Susal_De_Silva"]
[Black "santosalberto1987"]
[Result "0-1"]
[WhiteElo "2759"]
[BlackElo "2570"]
[TimeControl "180+1"]
[EndTime "8:37:30 PST"]
[Termination "santosalberto1987 won by resignation"]

1. Nf3 {[%clk 0:03:00.9]} 1... d5 {[%clk 0:02:58.1]} 2. e3 {[%clk 0:03:01]} 2...
Nf6 {[%clk 0:02:58]} 3. c4 {[%clk 0:03:01.3]} 3... c6 {[%clk 0:02:58]} 4. Nc3
{[%clk 0:03:01.6]} 4... a6 {[%clk 0:02:57.3]} 5. b3 {[%clk 0:03:00.4]} 5... Bf5
{[%clk 0:02:57.2]} 6. Bb2 {[%clk 0:03:00.5]} 6... e6 {[%clk 0:02:57.4]} 7. d4
{[%clk 0:03:00.3]} 7... h6 {[%clk 0:02:56.6]} 8. Bd3 {[%clk 0:03:00.3]} 8...
Bxd3 {[%clk 0:02:56.4]} 9. Qxd3 {[%clk 0:03:01.2]} 9... Nbd7 {[%clk 0:02:56.8]}
10. O-O {[%clk 0:03:01.2]} 10... Be7 {[%clk 0:02:57.4]} 11. e4 {[%clk
0:02:59.9]} 11... dxe4 {[%clk 0:02:58.3]} 12. Nxe4 {[%clk 0:03:00.7]} 12... O-O
{[%clk 0:02:58.6]} 13. Ng3 {[%clk 0:02:57]} 13... b5 {[%clk 0:02:58.2]} 14. Rfd1
{[%clk 0:02:52.1]} 14... bxc4 {[%clk 0:02:57.2]} 15. bxc4 {[%clk 0:02:51.8]}
15... Qa5 {[%clk 0:02:50.9]} 16. Bc3 {[%clk 0:02:46.3]} 16... Qa4 {[%clk
0:02:48.7]} 17. c5 {[%clk 0:02:29.7]} 17... Nd5 {[%clk 0:02:45.7]} 18. Bd2
{[%clk 0:02:28.8]} 18... Rab8 {[%clk 0:02:40.3]} 19. Ne4 {[%clk 0:02:25.3]}
19... N7f6 {[%clk 0:02:37.1]} 20. Ne5 {[%clk 0:02:19.9]} 20... Nxe4 {[%clk
0:02:15.5]} 21. Qxe4 {[%clk 0:02:20.6]} 21... Rb2 {[%clk 0:02:13.7]} 22. Qg4
{[%clk 0:02:07.5]} 22... Kh8 {[%clk 0:02:04.9]} 23. Qh5 {[%clk 0:01:50]} 23...
Kg8 {[%clk 0:01:35.8]} 24. Bxh6 {[%clk 0:01:13.4]} 24... gxh6 {[%clk 0:01:34.5]}
25. Rd3 {[%clk 0:01:13.2]} 25... Bg5 {[%clk 0:01:26.1]} 26. h4 {[%clk
0:01:02.7]} 26... Nf4 {[%clk 0:01:18.9]} 27. Qg4 {[%clk 0:00:59.8]} 27... Nxd3
{[%clk 0:01:18.9]} 28. Nxd3 {[%clk 0:01:00.7]} 28... Rxa2 {[%clk 0:01:16.6]} 29.
Rxa2 {[%clk 0:01:01.6]} 29... Qxa2 {[%clk 0:01:16.6]} 30. hxg5 {[%clk
0:01:02.2]} 30... Qb1+ {[%clk 0:01:15.5]} 0-1

[Event "Early-Titled-Tuesday-Blitz-February-06-2024"]
[Site "Chess.com"]
[Date "2024.02.06"]
[Round "4"]
[White "Rikikits"]
[Black "Polish_fighter3000"]
[Result "0-1"]
[WhiteElo "2834"]
[BlackElo "3063"]
[TimeControl "180+1"]
[EndTime "8:37:33 PST"]
[Termination "Polish_fighter3000 won by resignation"]

1. d4 {[%clk 0:03:00.9]} 1... Nf6 {[%clk 0:02:58.6]} 2. Bg5 {[%clk 0:03:00]}
2... e6 {[%clk 0:02:56.4]} 3. Nf3 {[%clk 0:02:56.6]} 3... h6 {[%clk 0:02:55]} 4.
Bh4 {[%clk 0:02:56.2]} 4... c5 {[%clk 0:02:51.9]} 5. e3 {[%clk 0:02:56]} 5... d5
{[%clk 0:02:49.4]} 6. Nbd2 {[%clk 0:02:55.7]} 6... Nbd7 {[%clk 0:02:47.5]} 7.
Bd3 {[%clk 0:02:55.2]} 7... Bd6 {[%clk 0:02:27.7]} 8. O-O {[%clk 0:02:46.1]}
8... c4 {[%clk 0:02:20.2]} 9. Be2 {[%clk 0:02:44.8]} 9... Qc7 {[%clk 0:02:20.4]}
10. c3 {[%clk 0:02:36.5]} 10... Rb8 {[%clk 0:02:08.9]} 11. Qc2 {[%clk
0:02:25.9]} 11... b5 {[%clk 0:02:06.2]} 12. e4 {[%clk 0:02:21.8]} 12... Nxe4
{[%clk 0:02:01.2]} 13. Nxe4 {[%clk 0:02:22.7]} 13... dxe4 {[%clk 0:02:01.7]} 14.
Qxe4 {[%clk 0:02:22.5]} 14... Bb7 {[%clk 0:02:01.9]} 15. Qg4 {[%clk 0:02:18.5]}
15... O-O {[%clk 0:01:26]} 16. Kh1 {[%clk 0:01:42.1]} 16... f5 {[%clk
0:01:16.5]} 17. Qg6 {[%clk 0:01:38.1]} 17... Bd5 {[%clk 0:01:14]} 18. Bg3 {[%clk
0:01:22.7]} 18... f4 {[%clk 0:01:07.6]} 19. Bh4 {[%clk 0:01:19.2]} 19... Rf5
{[%clk 0:01:08.2]} 20. Bd1 {[%clk 0:01:10.8]} 20... Nf8 {[%clk 0:01:05.6]} 21.
Qg4 {[%clk 0:01:09.7]} 21... g5 {[%clk 0:01:00]} 22. Bc2 {[%clk 0:01:07.8]}
22... Qf7 {[%clk 0:00:57.7]} 23. Rae1 {[%clk 0:00:50.4]} 23... h5 {[%clk
0:00:52.7]} 0-1

[Event "Early-Titled-Tuesday-Blitz-February-06-2024"]
[Site "Chess.com"]
[Date "2024.02.06"]
[Round "4"]
[White "Gravity_Chess"]
[Black "Jospem"]
[Result "1/2-1/2"]
[WhiteElo "2860"]
[BlackElo "3056"]
[TimeControl "180+1"]
[EndTime "8:37:42 PST"]
[Termination "Game drawn by agreement"]

1. c4 {[%clk 0:03:00.9]} 1... c5 {[%clk 0:02:59.8]} 2. Nf3 {[%clk 0:03:01.1]}
2... Nc6 {[%clk 0:03:00.4]} 3. d4 {[%clk 0:03:01.6]} 3... cxd4 {[%clk
0:03:00.4]} 4. Nxd4 {[%clk 0:03:02.5]} 4... Qb6 {[%clk 0:03:00.2]} 5. Nb5 {[%clk
0:02:50.5]} 5... a6 {[%clk 0:02:54.1]} 6. Be3 {[%clk 0:02:50.7]} 6... Qa5+
{[%clk 0:02:49.8]} 7. N5c3 {[%clk 0:02:46.9]} 7... e6 {[%clk 0:02:41]} 8. Qa4
{[%clk 0:02:42.6]} 8... Qc7 {[%clk 0:02:27.9]} 9. g3 {[%clk 0:02:42.9]} 9... Nf6
{[%clk 0:02:27.2]} 10. Bg2 {[%clk 0:02:43.4]} 10... Be7 {[%clk 0:02:27.7]} 11.
O-O {[%clk 0:02:43.8]} 11... O-O {[%clk 0:02:28.3]} 12. Bf4 {[%clk 0:02:27.3]}
12... Qb6 {[%clk 0:02:12.8]} 13. Qb3 {[%clk 0:02:27.7]} 13... Qa5 {[%clk
0:02:04.4]} 14. Rd1 {[%clk 0:02:15.5]} 14... b5 {[%clk 0:01:36]} 15. cxb5 {[%clk
0:02:10.7]} 15... axb5 {[%clk 0:01:36.9]} 16. Qxb5 {[%clk 0:02:10.7]} 16... Qxb5
{[%clk 0:01:29.4]} 17. Nxb5 {[%clk 0:02:11]} 17... d5 {[%clk 0:01:30.3]} 18.
N1c3 {[%clk 0:02:07.4]} 18... Bb7 {[%clk 0:01:05.2]} 19. e4 {[%clk 0:02:04.3]}
19... dxe4 {[%clk 0:00:52]} 20. Nxe4 {[%clk 0:02:05.2]} 20... Nd5 {[%clk
0:00:52.6]} 21. Bd6 {[%clk 0:02:04.7]} 21... Rfd8 {[%clk 0:00:50.3]} 22. Bxe7
{[%clk 0:02:02]} 22... Ncxe7 {[%clk 0:00:51.2]} 23. Nec3 {[%clk 0:01:59.6]}
23... Rab8 {[%clk 0:00:46.1]} 24. Nxd5 {[%clk 0:01:58.7]} 24... Nxd5 {[%clk
0:00:47]} 25. Nc3 {[%clk 0:01:52.1]} 25... Kf8 {[%clk 0:00:31.5]} 26. Nxd5
{[%clk 0:01:49.7]} 26... Bxd5 {[%clk 0:00:32.4]} 27. Bxd5 {[%clk 0:01:49.8]}
27... exd5 {[%clk 0:00:33.3]} 28. Rab1 {[%clk 0:01:14.3]} 28... Ke7 {[%clk
0:00:33.3]} 29. b4 {[%clk 0:01:14.7]} 29... Kd6 {[%clk 0:00:33.2]} 30. a4 {[%clk
0:01:15.1]} 30... Rdc8 {[%clk 0:00:33.7]} 1/2-1/2

[Event "Early-Titled-Tuesday-Blitz-February-06-2024"]
[Site "Chess.com"]
[Date "2024.02.06"]
[Round "4"]
[White "hakanazeri2"]
[Black "SpongeBob_03"]
[Result "1-0"]
[WhiteElo "2645"]
[BlackElo "2213"]
[TimeControl "180+1"]
[EndTime "8:37:49 PST"]
[Termination "hakanazeri2 won by resignation"]

1. Nf3 {[%clk 0:03:00.9]} 1... Nf6 {[%clk 0:02:59.3]} 2. c4 {[%clk 0:03:00.5]}
2... e6 {[%clk 0:02:55.8]} 3. g3 {[%clk 0:02:59.5]} 3... b6 {[%clk 0:02:52.8]}
4. Bg2 {[%clk 0:02:59.8]} 4... Bb7 {[%clk 0:02:49.7]} 5. O-O {[%clk 0:02:59.8]}
5... Be7 {[%clk 0:02:45.4]} 6. Nc3 {[%clk 0:02:59.4]} 6... d6 {[%clk 0:02:43.7]}
7. Re1 {[%clk 0:02:58]} 7... Nbd7 {[%clk 0:02:42.1]} 8. e4 {[%clk 0:02:57.8]}
8... O-O {[%clk 0:02:28.7]} 9. d4 {[%clk 0:02:57.5]} 9... c5 {[%clk 0:02:19.1]}
10. b3 {[%clk 0:02:53.9]} 10... cxd4 {[%clk 0:02:18.2]} 11. Qxd4 {[%clk
0:02:52.7]} 11... Ne8 {[%clk 0:02:00.8]} 12. Qd2 {[%clk 0:02:36.3]} 12... Nc5
{[%clk 0:01:57.2]} 13. Bb2 {[%clk 0:02:34.2]} 13... Bf6 {[%clk 0:01:57.3]} 14.
Nd4 {[%clk 0:02:32.9]} 14... Bxd4 {[%clk 0:01:38.1]} 15. Qxd4 {[%clk 0:02:32.2]}
15... Qf6 {[%clk 0:01:39]} 16. Qd2 {[%clk 0:02:16.2]} 16... Qg6 {[%clk
0:01:26.5]} 17. Rad1 {[%clk 0:02:10.4]} 17... Rd8 {[%clk 0:01:24.2]} 18. Qd4
{[%clk 0:01:55.1]} 18... Nf6 {[%clk 0:00:50.2]} 19. b4 {[%clk 0:01:50.4]} 19...
e5 {[%clk 0:00:40.1]} 20. Qe3 {[%clk 0:01:46.5]} 20... Ne6 {[%clk 0:00:36.1]}
21. Nb5 {[%clk 0:01:42.8]} 21... Ng4 {[%clk 0:00:32.3]} 22. Qf3 {[%clk
0:01:33.4]} 22... Qh5 {[%clk 0:00:16.5]} 23. h3 {[%clk 0:01:32.8]} 23... Nf6
{[%clk 0:00:12.7]} 24. Qxh5 {[%clk 0:01:31]} 24... Nxh5 {[%clk 0:00:13.6]} 25.
Nxd6 {[%clk 0:01:31.6]} 25... Bc6 {[%clk 0:00:12.3]} 26. Nf5 {[%clk 0:01:31.7]}
26... f6 {[%clk 0:00:11.6]} 27. Ne7+ {[%clk 0:01:30.9]} 1-0

[Event "Early-Titled-Tuesday-Blitz-February-06-2024"]
[Site "Chess.com"]
[Date "2024.02.06"]
[Round "4"]
[White "BallottiLuca"]
[Black "Tssunami"]
[Result "1-0"]
[WhiteElo "2360"]
[BlackElo "2493"]
[TimeControl "180+1"]
[EndTime "8:37:55 PST"]
[Termination "BallottiLuca won by resignation"]

1. d4 {[%clk 0:03:00.9]} 1... Nf6 {[%clk 0:02:20.7]} 2. c4 {[%clk 0:03:01.3]}
2... e6 {[%clk 0:02:20.7]} 3. Nc3 {[%clk 0:02:59.8]} 3... Bb4 {[%clk 0:02:20.8]}
4. Nf3 {[%clk 0:02:58.6]} 4... c5 {[%clk 0:02:19.9]} 5. e3 {[%clk 0:02:55.3]}
5... d5 {[%clk 0:02:17.7]} 6. Bd3 {[%clk 0:02:52.1]} 6... dxc4 {[%clk
0:02:16.7]} 7. Bxc4 {[%clk 0:02:51.2]} 7... O-O {[%clk 0:02:16.8]} 8. O-O {[%clk
0:02:49.4]} 8... b6 {[%clk 0:02:14]} 9. Qe2 {[%clk 0:02:43.9]} 9... Bb7 {[%clk
0:02:11]} 10. Rd1 {[%clk 0:02:42.5]} 10... Nbd7 {[%clk 0:02:06.8]} 11. d5 {[%clk
0:02:38]} 11... exd5 {[%clk 0:02:02.5]} 12. Nxd5 {[%clk 0:02:38.9]} 12... Nxd5
{[%clk 0:01:47.8]} 13. Bxd5 {[%clk 0:02:39.8]} 13... Bxd5 {[%clk 0:01:46.5]} 14.
Rxd5 {[%clk 0:02:40.7]} 14... Qe7 {[%clk 0:01:43.6]} 15. a3 {[%clk 0:02:38.9]}
15... Ba5 {[%clk 0:01:43.9]} 16. e4 {[%clk 0:02:23]} 16... Nf6 {[%clk
0:01:41.3]} 17. Re5 {[%clk 0:02:03.8]} 17... Qd7 {[%clk 0:01:29.7]} 18. Bg5
{[%clk 0:02:03.2]} 18... Qc6 {[%clk 0:01:20.5]} 19. Bxf6 {[%clk 0:01:58.5]}
19... Qxf6 {[%clk 0:01:19.8]} 20. Rd5 {[%clk 0:01:56.2]} 20... Rfe8 {[%clk
0:01:14.7]} 21. Rad1 {[%clk 0:01:52.2]} 21... h6 {[%clk 0:01:09.7]} 22. g3
{[%clk 0:01:46.2]} 22... Qg6 {[%clk 0:01:04.7]} 23. e5 {[%clk 0:01:43.3]} 23...
Rac8 {[%clk 0:00:56.6]} 24. Qc4 {[%clk 0:01:29]} 24... Qf5 {[%clk 0:00:46.5]}
25. Kg2 {[%clk 0:01:26.3]} 25... Rc7 {[%clk 0:00:41.6]} 26. b4 {[%clk
0:01:20.2]} 26... b5 {[%clk 0:00:30.9]} 27. Qxb5 {[%clk 0:01:01.7]} 1-0

[Event "Early-Titled-Tuesday-Blitz-February-06-2024"]
[Site "Chess.com"]
[Date "2024.02.06"]
[Round "4"]
[White "mertfelin"]
[Black "Mourinho_Jose"]
[Result "0-1"]
[WhiteElo "2272"]
[BlackElo "2479"]
[TimeControl "180+1"]
[EndTime "8:37:55 PST"]
[Termination "Mourinho_Jose won by resignation"]

1. e4 {[%clk 0:03:00.9]} 1... c5 {[%clk 0:02:57.9]} 2. Nf3 {[%clk 0:03:00.7]}
2... Nc6 {[%clk 0:02:57.1]} 3. Bb5 {[%clk 0:03:00.7]} 3... g6 {[%clk 0:02:56.7]}
4. O-O {[%clk 0:03:00.9]} 4... Bg7 {[%clk 0:02:56.8]} 5. Nc3 {[%clk 0:02:59.9]}
5... a6 {[%clk 0:02:52.7]} 6. Bxc6 {[%clk 0:02:59.1]} 6... dxc6 {[%clk 0:02:52]}
7. e5 {[%clk 0:02:58.3]} 7... Bg4 {[%clk 0:02:43.6]} 8. Re1 {[%clk 0:02:56]}
8... Qc7 {[%clk 0:02:43.6]} 9. d3 {[%clk 0:02:47.6]} 9... Bxf3 {[%clk
0:02:41.5]} 10. Qxf3 {[%clk 0:02:48.3]} 10... Bxe5 {[%clk 0:02:41.5]} 11. Be3
{[%clk 0:02:39]} 11... Bxh2+ {[%clk 0:02:40.4]} 12. Kh1 {[%clk 0:02:38.3]} 12...
Bd6 {[%clk 0:02:40.9]} 13. Ne4 {[%clk 0:02:37.9]} 13... Be5 {[%clk 0:01:46.6]}
14. Nxc5 {[%clk 0:02:30]} 14... Nf6 {[%clk 0:01:42.8]} 15. d4 {[%clk 0:02:26.4]}
15... Bd6 {[%clk 0:01:35.7]} 16. Bg5 {[%clk 0:02:17.4]} 16... O-O {[%clk
0:01:30.8]} 17. Bxf6 {[%clk 0:02:11]} 17... exf6 {[%clk 0:01:31.1]} 18. Ne4
{[%clk 0:02:11.7]} 18... f5 {[%clk 0:01:16.2]} 19. Nxd6 {[%clk 0:02:11.3]} 19...
Qxd6 {[%clk 0:01:17.1]} 20. c3 {[%clk 0:02:12]} 20... Rfe8 {[%clk 0:01:12.7]}
21. g3 {[%clk 0:02:12]} 21... Qd5 {[%clk 0:01:11.4]} 22. Qxd5 {[%clk 0:02:12.4]}
22... cxd5 {[%clk 0:01:12.3]} 23. Kg2 {[%clk 0:02:10.1]} 23... f6 {[%clk
0:01:12.1]} 24. Rac1 {[%clk 0:02:06.7]} 24... Kf7 {[%clk 0:01:10.1]} 25. Rxe8
{[%clk 0:02:05.9]} 25... Rxe8 {[%clk 0:01:09]} 26. Kf3 {[%clk 0:02:06.6]} 26...
g5 {[%clk 0:01:05.6]} 27. Rc2 {[%clk 0:02:02.3]} 27... h5 {[%clk 0:00:59.3]} 28.
c4 {[%clk 0:01:58.2]} 28... Rc8 {[%clk 0:00:58.9]} 29. c5 {[%clk 0:01:58.3]}
29... Re8 {[%clk 0:00:56.5]} 30. Rc3 {[%clk 0:01:57.5]} 30... Kg6 {[%clk
0:00:56.4]} 31. Rb3 {[%clk 0:01:57.7]} 31... g4+ {[%clk 0:00:55.5]} 32. Kg2
{[%clk 0:01:57.9]} 32... Re7 {[%clk 0:00:56]} 33. Rb6 {[%clk 0:01:55.6]} 33...
Rd7 {[%clk 0:00:49.4]} 34. b4 {[%clk 0:01:53.6]} 34... f4 {[%clk 0:00:46.8]} 35.
gxf4 {[%clk 0:01:51.8]} 35... h4 {[%clk 0:00:47.3]} 36. a4 {[%clk 0:01:48.5]}
36... Kf5 {[%clk 0:00:46.5]} 37. b5 {[%clk 0:01:44.8]} 37... axb5 {[%clk
0:00:47.4]} 38. axb5 {[%clk 0:01:45.1]} 38... Rf7 {[%clk 0:00:34.2]} 39. Rxb7
{[%clk 0:01:28]} 39... Rxb7 {[%clk 0:00:31.5]} 40. c6 {[%clk 0:01:28.5]} 40...
Rc7 {[%clk 0:00:31.7]} 0-1